Workbook

Sheet 발주계획
B1: 울산광역시 공고 제2026-3호
B2: 2026년도 1/4분기 발주계획(공사·용역·물품) 공고
B3: 「지방자치단체를 당사자로 하는 계약에 관한 법률」 제43조 및 같은 법 시행령 제124조에 따라 우리시 2025년도 1분기 발주계획을 다음과 같이 공고합니다. 2026. 1. 2. 울산광역시장
C4: 각 시트별 집계현황
C5: 총 | D5: =SUM(D6:D8) -> 222건 | E5: =E6+E7+E8 -> 78,504백만원
C6: 공사 | D6: =COUNTA(공사!A2:A200) -> 48건 | E6: =INT(SUM(공사!F:F)/1000000) -> 53,623백만원
C7: 용역 | D7: =COUNTA(용역!A2:A200) -> 108건 | E7: =INT(SUM(용역!G:G)/1000000) -> 19,615백만원
C8: 물품 | D8: =COUNTA(물품!A2:A200) -> 66건 | E8: =INT(SUM(물품!H:H)/1000000) -> 5,266백만원
B10: ※ 설계결과, 현지여건, 우리시 사정등에 의하여 사업의 분리 또는 사업비의 증감, 발주시기 등이 변경될 수 있습니다.

Sheet 공사
A1: 발주년도 | B1: 발주월 | C1: 공사명 | D1: 공종 | E1: 발주물량 또는 규모 | F1: 발주도급금액 (단위:원) | G1: 발주관급자재비 | H1: 발주기타금액 | I1: 발주합계금액 | J1: 금차도급금액 | K1: 부서명 | L1: 담당자 | M1: 연락처 | N1: 비고
A2: 2026 | B2: 1 | C2: 울산대공원 장미원 정비사업(1단계) | D2: 전문 | E2: 울산대공원 장미원 정비 1식 | F2: 2,400,000,000 | G2: 0 | H2: 0 | I2: 2,400,000,000 | J2: 2,400,000,000 | K2: 녹지공원과 | L2: 정성문 | M2: 052-229-3342
A3: 2026 | B3: 1 | C3: 2026년 울산경제자유구역 공공시설물 연간관리사업 | D3: 토목 | E3: KTX역세권 등 경제자유구역 내 녹지 및 공원 등 | F3: 600,000,000 | G3: 0 | H3: 0 | I3: 600,000,000 | J3: 600,000,000 | K3: 울산경제자유구역청 혁신성장지원부 | L3: 김관태 | M3: 052-229-8654
A4: 2026 | B4: 1 | C4: 2026년 울산경제자유구역 공공시설물 연간관리사업 전기시설유지보수공사 | D4: 전기 | E4: KTX역세권 등 경제자유구역 내 녹지 및 공원 등 | F4: 20,000,000 | G4: 0 | H4: 0 | I4: 20,000,000 | J4: 20,000,000 | K4: 울산경제자유구역청 혁신성장지원부 | L4: 김관태 | M4: 052-229-8654
A5: 2026 | B5: 1 | C5: 울산HTV 일반산업단지 2단계 조성사업 석면해체 및 제거공사(3차) | D5: 기타 | E5: 석면해체 및 제거 1식 | F5: 180,000,000 | G5: 0 | H5: 0 | I5: 180,000,000 | J5: 180,000,000 | K5: 울산경제자유구역청 혁신성장지원부 | L5: 박종진 | M5: 052-229-8654
A6: 2026 | B6: 1 | C6: 피아노 보관실 리모델링 공사 | D6: 건축 | E6: 리모델링, 전등,소방 교체 등 | F6: 20,000,000 | G6: 0 | H6: 0 | I6: 20,000,000 | J6: 0 | K6: 문화예술회관 경영관리과 | L6: 최윤정 | M6: 052-226-8227
A7: 2026 | B7: 1 | C7: 성안1,2가압장 노후 원격제어판넬 교체공사 | D7: 전기 | E7: 원격제어판넬 각 1면 교체 | F7: 80,000,000 | G7: 0 | H7: 0 | I7: 80,000,000 | J7: 0 | K7: 상수도사업본부 시설관리부 | L7: 우채윤 | M7: 052-229-6682
A8: 2026 | B8: 1 | C8: 회야댐 방수로 바닥슬래브 보수·보강공사 | D8: 전문 | E8: 보수·보강 1식 | F8: 100,000,000 | G8: 0 | H8: 0 | I8: 100,000,000 | J8: 0 | K8: 상수도사업본부 회야정수사업소 | L8: 김세윤 | M8: 052-229-6414
A9: 2026 | B9: 1 | C9: 여천배수장 유입수로 우수토실 설치공사 | D9: 토건 | E9: 우수토실설치 및 관로, 펌프장 설치 | F9: 1,646,310,000 | G9: 332,690 | H9: 0 | I9: =SUM(F9:H9) -> 1,646,642,690 | J9: =SUM(G9:I9) -> 1,646,975,380 | K9: 하수관리과 | L9: 곽동욱 | M9: 052-229-3285
A10: 2026 | B10: 1 | C10: 여천배수장 유입수로 우수토실 설치 전기공사 | D10: 전기 | E10: 전기시설 및 원격제어시스팀 | F10: 33,000,000 | G10: 99,530,000 | H10: 7,195,100 | I10: =SUM(F10:H10) -> 139,725,100 | J10: =SUM(G10:I10) -> 246,450,200 | K10: 하수관리과 | L10: 곽동욱 | M10: 052-229-3285
A11: 2026 | B11: 1 | C11: 회야수질개선사업소 수중펌프 정기보수 | D11: 전문 | E11: 수정펌프 4대 분해정비 | F11: 120,000,000 | G11: 0 | H11: 0 | I11: =SUM(F11:H11) -> 120,000,000 | J11: 0 | K11: 하수관리과 | L11: 김정현 | M11: 052-229-3297 | N11: 회야
A12: 2026 | B12: 1 | C12: 언양수질개선사업소 원격감시제어 설비교체 | D12: 기타 | E12: 감시제어설비 5식 교체 | F12: 40,000,000 | G12: 0 | H12: 0 | I12: =SUM(F12:H12) -> 40,000,000 | J12: 0 | K12: 하수관리과 | L12: 김정현 | M12: 052-229-3297 | N12: 언양
A13: 2026 | B13: 1 | C13: 방어진수질개선사업소 중계펌프장 수중펌프 분해정비 | D13: 전문 | E13: 수중펌프 4대 분해정비 | F13: 96,000,000 | G13: 0 | H13: 0 | I13: =SUM(F13:H13) -> 96,000,000 | J13: 0 | K13: 하수관리과 | L13: 김정현 | M13: 052-229-3297 | N13: 방어진
A14: 2026 | B14: 2 | C14: 태화강역~장생포 간 수소트램 운행사업(토목) | D14: 토목 | E14: 선로 4.14km(신설 1.22, 정비 2.92) | F14: 15,503,900,000 | G14: 1,832,440,000 | H14: 0 | I14: =F14+G14 -> 17,336,340,000 | J14: 8,000,000,000 | K14: 광역트램교통과 | L14: 김상우 | M14: 052-229-7783
A15: 2026 | B15: 2 | C15: 명촌천 교량 설치 | D15: 토목 | E15: 교량 1개소 | F15: 1,000,000,000 | G15: 1,000,000,000 | H15: 0 | I15: =F15+G15+H15 -> 2,000,000,000 | J15: 0 | K15: 맑은물정책과 | L15: 김진영 | M15: 052-229-7553
A16: 2026 | B16: 2 | C16: 2026년 일반산업단지 내 녹지시설 관리공사(울주권∙북구권) | D16: 기타 | E16: 풀베기, 관목전정, 관수작업, 비료주기 등 | F16: 540,000,000 | G16: 10,000,000 | H16: 0 | I16: 550,000,000 | J16: 550,000,000 | K16: 일반산단과 | L16: 박현정 | M16: 229-3065
A17: 2026 | B17: 2 | C17: 언양2가압장 가압펌프 교체공사 | D17: 전문 | E17: 가압펌프 4대 교체 | F17: 600,000,000 | G17: 0 | H17: 0 | I17: 600,000,000 | J17: 0 | K17: 상수도사업본부 시설관리부 | L17: 윤성근 | M17: 052-229-6683
A18: 2026 | B18: 2 | C18: 선암가압장 기동판넬 내함 교체공사 | D18: 전기 | E18: 노후 기동판넬 내함 교체공사 | F18: 40,000,000 | G18: 0 | H18: 0 | I18: 40,000,000 | J18: 0 | K18: 상수도사업본부 시설관리부 | L18: 우채윤 | M18: 052-229-6682
A19: 2026 | B19: 2 | C19: 십리대숲 관수 및 화재예방 겸용시설 설치 공사(토목) | D19: 전문 | E19: 관수시설 등 설치 1식 | F19: 214,000,000 | G19: 52,350,000 | H19: 1,650,000 | I19: =F19+G19+H19 -> 268,000,000 | J19: 0 | K19: 태화강국가정원과 | L19: 김차현 | M19: 052-229-7582 | N19: 금액, 물량 변동될 수 있음
A20: 2026 | B20: 2 | C20: 십리대숲 관수 및 화재예방 겸용시설 설치 공사(전기) | D20: 전기 | E20: 동력판넬 및 배관배설 1식 | F20: 14,000,000 | G20: 16,350,000 | H20: 1,650,000 | I20: =F20+G20+H20 -> 32,000,000 | J20: 0 | K20: 태화강국가정원과 | L20: 김차현 | M20: 052-229-7582 | N20: 금액, 물량 변동될 수 있음
A21: 2026 | B21: 2 | C21: 국가정원 호우 피해 복구 공사 | D21: 전문 | E21: 저수호안 침목 복구 1식 | F21: 115,000,000 | G21: 84,120,000 | H21: 880,000 | I21: =F21+G21+H21 -> 200,000,000 | J21: 0 | K21: 태화강국가정원과 | L21: 김차현 | M21: 052-229-7582 | N21: 금액, 물량 변동될 수 있음
A22: 2026 | B22: 2 | C22: 상반기 태화지구 황톳길 유지관리 공사 | D22: 전문 | E22: 황톳길 재정비 1식 | F22: 25,000,000 | G22: 0 | H22: 0 | I22: =F22+G22+H22 -> 25,000,000 | J22: 0 | K22: 태화강국가정원과 | L22: 김차현 | M22: 052-229-7582 | N22: 금액, 물량 변동될 수 있음
A23: 2026 | B23: 2 | C23: 방어진수질개선사업소 펌프기동반 VCB 교체 | D23: 전기 | E23: VCB 교체 1식 | F23: 65,000,000 | G23: 0 | H23: 0 | I23: =SUM(F23:H23) -> 65,000,000 | J23: 0 | K23: 하수관리과 | L23: 김정현 | M23: 052-229-3297 | N23: 방어진
A24: 2026 | B24: 2 | C24: 회야수질개선사업소 터보송풍기 정기보수 | D24: 전문 | E24: 터보송풍기 3대 분해정비 | F24: 65,000,000 | G24: 0 | H24: 0 | I24: =SUM(F24:H24) -> 65,000,000 | J24: 0 | K24: 하수관리과 | L24: 김정현 | M24: 052-229-3297 | N24: 회야
A25: 2026 | B25: 2 | C25: 방어진수질개선사업소 중계펌프장 제진기 보수 | D25: 전문 | E25: 제진기 3식 분해정비 | F25: 122,000,000 | G25: 0 | H25: 0 | I25: =SUM(F25:H25) -> 122,000,000 | J25: 0 | K25: 하수관리과 | L25: 김정현 | M25: 052-229-3297 | N25: 방어진
A26: 2026 | B26: 2 | C26: 회야수질개선사업소 제1처리시설 전기실 냉방기 교체 | D26: 기타 | E26: 전기실 냉방기 2대 교체 | F26: 25,000,000 | G26: 0 | H26: 0 | I26: =SUM(F26:H26) -> 25,000,000 | J26: 0 | K26: 하수관리과 | L26: 김정현 | M26: 052-229-3297 | N26: 회야
A27: 2026 | B27: 2 | C27: 2026년 언양, 방어진 침사지 및 중계펌프장 퇴적물 준설공사(단가계약) | D27: 토목 | E27: 퇴적물 준설 및 처리 V=1,400㎥ | F27: 300,000,000 | G27: 0 | H27: 0 | I27: 300,000,000 | J27: 300,000,000 | K27: 하수관리과 | L27: 이준호 | M27: 052-229-3296 | N27: 언양,방어진
A28: 2026 | B28: 2 | C28: 2026년 관리대행수질개선사업소 조경관리공사(단가계약) | D28: 토목 | E28: 조경관리 1식 | F28: 100,000,000 | G28: 0 | H28: 0 | I28: 100,000,000 | J28: 100,000,000 | K28: 하수관리과 | L28: 이준호 | M28: 052-229-3296 | N28: 회야,언양,방어진
A29: 2026 | B29: 3 | C29: 울산미포국가산단 아름다운거리조성 플러스사업 | D29: 토목 | F29: 1,500,000,000 | G29: 1,000,000,000 | H29: 0 | I29: =F29+G29 -> 2,500,000,000 | J29: 1,500,000,000 | K29: 국가산단과 | L29: 엄수한 | M29: 052-229-4382
A30: 2026 | B30: 3 | C30: 회야강(회야지구) 지방하천 정비사업 | D30: 토목 | E30: 제방 축제 및 보축(L=8.08㎞) | F30: 11,743,500,000 | G30: 0 | H30: 0 | I30: =F30+G30+H30 -> 11,743,500,000 | J30: 0 | K30: 맑은물정책과 | L30: 김진영 | M30: 052-229-7553
A31: 2026 | B31: 3 | C31: 척과천 지방하천 정비사업 | D31: 토목 | E31: 제방 축제 및 보축(L=6.0㎞) | F31: 10,301,600,000 | G31: 0 | H31: 0 | I31: =F31+G31+H31 -> 10,301,600,000 | J31: 0 | K31: 맑은물정책과 | L31: 김진영 | M31: 052-229-7554
A32: 2026 | B32: 3 | C32: 동물위생시험소 옥상 방수 공사 | D32: 건축 | E32: 폴리우레탄 방수공사 660㎡ | F32: 27,000,000 | G32: 0 | H32: 0 | I32: 27,000,000 | J32: 27,000,000 | K32: 보건환경연구원 동물위생과 | L32: 손정식 | M32: 052-229-5245
A33: 2026 | B33: 3 | C33: 2026년 기후대응 도시숲 조성사업(길천일반산업단지 내) | D33: 기타 | E33: 도시숲 조성 7,000㎡ | F33: 675,000,000 | G33: 25,000,000 | H33: 0 | I33: =F33+G33 -> 700,000,000 | J33: 913,600,000 | K33: 일반산단과 | L33: 박현정 | M33: 052-229-3065
A34: 2026 | B34: 3 | C34: 매곡일반산업단지 활력있고 아름다운거리조성 플러스사업 | D34: 토목 | E34: 보도정비 L=4,403m, 안전보행환경 시설물 1식 | F34: 1,946,650,000 | G34: 740,450,000 | H34: 212,900,000 | I34: 2,900,000,000 | J34: 1,362,000,000 | K34: 일반산단과 | L34: 라우진 | M34: 052-229-3072
A35: 2026 | B35: 3 | C35: 신일반산업단지 성토사면 보강공사 | D35: 토목 | E35: 옹벽시공 L=110m | F35: 1,000,000,000 | G35: 300,000,000 | H35: 0 | I35: 1,300,000,000 | J35: 1,300,000,000 | K35: 일반산단과 | L35: 김소영 | M35: 052-229-3063
A36: 2026 | B36: 3 | C36: 신정배수지(5,6지) 방수방식공사 | D36: 토목 | E36: 배수지 내부 방수방식 A=4,570㎡ | F36: 6,740,000 | G36: 398,700,000 | H36: 0 | I36: 405,440,000 | J36: 0 | K36: 상수도사업본부 시설관리부 | L36: 김남열 | M36: 052-229-5584
A37: 2026 | B37: 3 | C37: 연암배수지(신지) 방수방식공사 | D37: 토목 | E37: 배수지 내부 방수방식 A=6,128㎡ 등 | F37: 130,000,000 | G37: 469,404,000 | H37: 0 | I37: 599,404,000 | J37: 0 | K37: 상수도사업본부 시설관리부 | L37: 김남열 | M37: 052-229-5584
A38: 2026 | B38: 3 | C38: 성안1가압장 가압방식 변경공사 | D38: 전문 | E38: 흡수정 1지 라인가압 작업 | F38: 40,000,000 | I38: 40,000,000 | J38: 0 | K38: 상수도사업본부 시설관리부 | L38: 윤성근 | M38: 052-229-6683
A39: 2026 | B39: 3 | C39: 농소가압장 가압펌프 교체공사 | D39: 전문 | E39: 가압펌프 4대 교체 | F39: 380,000,000 | I39: 380,000,000 | J39: 0 | K39: 상수도사업본부 시설관리부 | L39: 윤성근 | M39: 052-229-6683
A40: 2026 | B40: 3 | C40: 언양2가압장 노후 전기판넬 교체공사 | D40: 전기 | E40: 언양2가압장 전기판넬(7면) | F40: 130,000,000 | G40: 250,000,000 | H40: 20,000,000 | I40: 400,000,000 | J40: 0 | K40: 상수도사업본부 시설관리부 | L40: 우채윤 | M40: 052-229-6682
A41: 2026 | B41: 3 | C41: 2026년 긴급누수복구 및 수선단가공사(장기계속)_1구역 | D41: 토목 | E41: 긴급누수복공사 1식 | F41: 560,000,000 | G41: 0 | H41: 0 | I41: =F41+G41+H41 -> 560,000,000 | J41: 450,000,000 | K41: 상수도사업본부 시설관리부 | L41: 이두형 | M41: 052-229-6228 | N41: 장기계속계약
A42: 2026 | B42: 3 | C42: 2026년 긴급누수복구 및 수선단가공사(장기계속)_2구역 | D42: 토목 | E42: 긴급누수복공사 1식 | F42: 560,000,000 | G42: 0 | H42: 0 | I42: =F42+G42+H42 -> 560,000,000 | J42: 450,000,000 | K42: 상수도사업본부 시설관리부 | L42: 이두형 | M42: 052-229-6228 | N42: 장기계속계약
A43: 2026 | B43: 3 | C43: 송수관로 전기방식시설 수선공사 | D43: 전기 | E43: 정류기 2개소, 양극홀 4개소 설치 | F43: 280,000,000 | G43: 0 | H43: 20,000,000 | I43: 300,000,000 | J43: 0 | K43: 상수도사업본부 시설관리부 | L43: 박재수 | M43: 052-229-6229
A44: 2026 | B44: 3 | C44: 유량계 낙뢰보호기 교체 공사 | D44: 전기 | E44: 유량계 판넬 낙뢰보호기 교체 및 전기공사(110개소) | F44: 40,000,000 | G44: 70,000,000 | I44: 110,000,000 | J44: 0 | K44: 상수도사업본부 시설관리부 | L44: 김평주 | M44: 052-229-6688
A45: 2026 | B45: 3 | C45: 전오존발생기 교체 및 주입방식 변경공사 | D45: 기타 | E45: 전오존발생기 A호기 1식 | F45: 0 | G45: 960,000,000 | H45: 0 | I45: 960,000,000 | J45: 0 | K45: 상수도사업본부 회야정수사업소 | L45: 변성우 | M45: 052-229-6424
A46: 2026 | B46: 3 | C46: 언양수질개선사업소 농축분배조 유입수문 교체 | D46: 전문 | E46: 유입수문 1기 교체 | F46: 25,000,000 | G46: 0 | H46: 0 | I46: =SUM(F46:H46) -> 25,000,000 | J46: 0 | K46: 하수관리과 | L46: 김정현 | M46: 052-229-3297 | N46: 언양
A47: 2026 | B47: 3 | C47: 언양수질개선사업소 중계/맨홀펌프장 노후수중펌프 교체 | D47: 전문 | E47: 수중펌프 4대 교체 | F47: 89,000,000 | G47: 0 | H47: 0 | I47: =SUM(F47:H47) -> 89,000,000 | J47: 0 | K47: 하수관리과 | L47: 김정현 | M47: 052-229-3297 | N47: 언양
A48: 2026 | B48: 3 | C48: 방어진수질개선사업소 탈수기, 농축기 보수 | D48: 전문 | E48: 탈수기 1식, 농축기 1식 분해정비 | F48: 75,000,000 | G48: 0 | H48: 0 | I48: =SUM(F48:H48) -> 75,000,000 | J48: 0 | K48: 하수관리과 | L48: 김정현 | M48: 052-229-3297 | N48: 방어진
A49: 2026 | B49: 1~3 | C49: 정수장 및 댐 긴급수선비(토목,건축 등) | D49: 전문 | E49: 수선,정비,보수,보강,개량 등 1식 | F49: 50,000,000 | G49: 0 | H49: 0 | I49: 50,000,000 | J49: 0 | K49: 상수도사업본부 회야정수사업소 | L49: 김세윤 | M49: 052-229-6414

Sheet 용역
A1: 발주년도 | B1: 발주월 | C1: 용역명 | D1: 업무유형 | E1: 용역구분 | F1: 사업내용(발주규모 등) | G1: 예산액 (단위: 원) | H1: 부서명 | I1: 담당자 | J1: 연락처 | K1: 비고
A2: 2026 | B2: 1 | C2: 2026년 ITS 보강 및 확장사업 실시설계 용역 | D2: 신규 | E2: 기술용역 | F2: AI S/W 개선, CCTV, DSRC, VDS, VMS 신규설치 | G2: 20,000,000 | H2: 교통기획과 | I2: 한동호 | J2: 052-229-4272
A3: 2026 | B3: 1 | C3: 2026년 교차로 교통체계 개선사업 실시설계용역 | D3: 신규 | E3: 기술용역 | F3: 교차로 분석 및 개선 1식 | G3: 90,000,000 | H3: 교통기획과 | I3: 최봉규 | J3: 052-229-4266
A4: 2026 | B4: 1 | C4: 선바위 공원조성계획 및 GB관리계획 결정(변경) 용역 | D4: 신규 | E4: 기술용역 | F4: ＊ 선바위공원 A=253,000㎡ ＊ 공원 재조성을 위한 공원조성계획 및 GB관리계획 결정(변경) 수립 | G4: 170,000,000 | H4: 녹지공원과 | I4: 김명환 | J4: 052-229-3333
A5: 2026 | B5: 1 | C5: 울산대공원 참여공원 조성사업 실시설계용역 | D5: 신규 | E5: 기술용역 | F5: ＊ 공원조성 A=5,000㎡ ＊ 잔디정원, 휴게공간 조성, 산책로정비 등 | G5: 30,000,000 | H5: 녹지공원과 | I5: 김명환 | J5: 052-229-3333
A6: 2026 | B6: 1 | C6: 선바위공원 정비사업 실시설계용역 | D6: 신규 | E6: 기술용역 | F6: ＊ 공원조성 A=3,000㎡ ＊ 테마형가족쉼터, 꽃단지, 야간조명 등 설치 | G6: 30,000,000 | H6: 녹지공원과 | I6: 김명환 | J6: 052-229-3333
A7: 2026 | B7: 1 | C7: 2040 울산 공원녹지기본계획수립용역 | D7: 신규 | E7: 기술용역 | F7: ＊ 울산광역시 전역 / A=1,144㎢ ＊ 일몰제, 지역특성과 여건을 감안한 공원,녹지 및 도시환경 발전방향 등 체계적 계획 수립 | G7: 250,000,000 | H7: 녹지공원과 | I7: 이승주 | J7: 052-229-3332
A8: 2026 | B8: 1 | C8: 2026 제18회 울산대공원 장미축제 행사대행 용역 | D8: 신규 | E8: 일반용역 | F8: 행사대행 1식 | G8: 520,000,000 | H8: 녹지공원과 | I8: 이미리 | J8: 052-229-3344
A9: 2026 | B9: 1 | C9: 2026 제18회 울산대공원 장미축제 경관조성 용역 | D9: 신규 | E9: 일반용역 | F9: 경관조성 1식 | G9: 300,000,000 | H9: 녹지공원과 | I9: 이미리 | J9: 052-229-3344
A10: 2026 | B10: 1 | C10: 울산역 번영탑 환경개선 공사(경관조명 및 바닥교체) | D10: 신규 | E10: 기술용역 | F10: 노후 수조철거 및 바닥교체 공사, 경관조명 설치 공사 | G10: 130,000,000 | H10: 도시경관과 | I10: 방미진 | J10: 052-229-6552
A11: 2026 | B11: 1 | C11: 도시관리계획(도시계획시설) 결정(변경) 용역 | D11: 신규 | E11: 기술용역 | F11: 도시관리계획 결정 30,000㎡ | G11: 60,000,000 | H11: 도시계획과 | I11: 김병국 | J11: 052-229-4343
A12: 2026 | B12: 1 | C12: 국토이용정보체계(UPIS, KLIP) DB현행화 용역 | D12: 신규 | E12: 기술용역 | F12: 도시관리계획 결정사항 전산등록 1식 | G12: 140,000,000 | H12: 도시계획과 | I12: 박효정 | J12: 052-229-4344
A13: 2026 | B13: 1 | C13: 도시 확장지역 개발 기본구상 용역 | D13: 신규 | E13: 기술용역 | F13: 기본구상(A=650만㎡ 정도) 1식 | G13: 100,000,000 | H13: 도시계획과 | I13: 주원영 | J13: 052-229-4334
A14: 2026 | B14: 1 | C14: 제4단계 낙동강수계 오염총량관리 시행계획 2025년도 이행평가 | D14: 신규 | E14: 일반용역 | F14: 이행평가 보고서 1식 | G14: 18,000,000 | H14: 맑은물정책과 | I14: 김진아 | J14: 052-229-7533
A15: 2026 | B15: 1 | C15: 비점오염 저감시설 유지관리 및 모니터링 용역 | D15: 장기 | E15: 일반용역 | F15: 비점오염 저감시설 44기 관리 및 운영 | G15: 82,000,000 | H15: 맑은물정책과 | I15: 정승훈 | J15: 052-229-7545
A16: 2026 | B16: 1 | C16: 학산동 외 1개소 LID 비점오염 저감사업 건설폐기물(폐아스콘)처리용역 | D16: 신규 | E16: 일반용역 | F16: 폐아스콘 운반(3,366.4톤) 및 처리(1,009.9톤) | G16: 71,690,000 | H16: 맑은물정책과 | I16: 이지희 | J16: 052-229-7544
A17: 2026 | B17: 1 | C17: 학산동 외 1개소 LID 비점오염 저감사업 건설폐기물(폐콘크리트 등)처리용역 | D17: 신규 | E17: 일반용역 | F17: 폐콘크리트 등 운반(4,402.9톤), 처리(2,715.9톤) | G17: 148,950,000 | H17: 맑은물정책과 | I17: 이지희 | J17: 052-229-7544
A18: 2026 | B18: 1 | C18: 울산 미포국가산단 효문공단 저탄소 그린산업단지 조성사업 건설폐기물(폐아스콘)처리용역 | D18: 신규 | E18: 일반용역 | F18: 폐아스콘 운반(1,997.14톤), 처리(599.14톤) | G18: 42,750,000 | H18: 맑은물정책과 | I18: 이지희 | J18: 052-229-7544
A19: 2026 | B19: 1 | C19: 울산 미포국가산단 효문공단 저탄소 그린산업단지 조성사업 건설폐기물(폐콘크리트)처리용역 | D19: 신규 | E19: 일반용역 | F19: 폐콘크리트 운반(4,303.4톤), 처리(2,631.7톤) | G19: 144,540,000 | H19: 맑은물정책과 | I19: 이지희 | J19: 052-229-7544
A20: 2026 | B20: 1 | C20: 제5차 대중교통계획 수립 | D20: 장기 | E20: 연구용역 | F20: 대중교통계획 추진성과분석 및 전략적 추진계획 작성 | G20: 280,000,000 | H20: 버스택시과 | I20: 김경식 | J20: 052-229-4213
A21: 2026 | B21: 1 | C21: 시내버스 재정지원 관리시스템 유지보수 | D21: 장기 | E21: 일반용역 | F21: 정보시스템 1식 유지보수 | G21: 19,363,000 | H21: 버스택시과 | I21: 김경태 | J21: 052-229-4193
A22: 2026 | B22: 1 | C22: 시내버스 재정지원금 집행실적 검증 | D22: 장기 | E22: 일반용역 | F22: 전년도 시내버스 보조금 집행실적 검증 | G22: 50,000,000 | H22: 버스택시과 | I22: 김경태 | J22: 052-229-4193
A23: 2026 | B23: 1 | C23: 연구활동종사자 특수건강검진 | D23: 장기 | E23: 기술용역 | F23: 산업안전보건법 시행규칙 별표22의 물질에 대한 특수건강검진 | G23: 7,000,000 | H23: 보건환경연구원 생활환경과 | I23: 이광원 | J23: 052-229-6691
A24: 2026 | B24: 1 | C24: 교통소음자동측정시스템 유지보수 위탁용역 | D24: 장기 | E24: 기술용역 | F24: 소음측정시스템 운영 관리 (고정식5대,이동식1대,서버2대) | G24: 28,000,000 | H24: 보건환경연구원 생활환경과 | I24: 고승환 | J24: 052-229-6697
A25: 2026 | B25: 1 | C25: 환경측정기기 정도검사 및 교정검사 | D25: 장기 | E25: 기술용역 | F25: 환경분야시험검사등에 관한법률 제11조 측정기기의 정도검사 | G25: 23,000,000 | H25: 보건환경연구원 생활환경과 | I25: 홍명희 | J25: 052-229-6693
A26: 2026 | B26: 1 | C26: 유해대기측정시스템 유지보수 위탁용역 | D26: 장기 | E26: 기술용역 | F26: 유해대기측정차량의 운영 관리 | G26: 10,000,000 | H26: 보건환경연구원 생활환경과 | I26: 서윤하 | J26: 052-229-6692
A27: 2026 | B27: 1 | C27: 2026년 태화강 국가하천 둔치 물억새 베기 장비임차용역 | D27: 장기 | E27: 일반용역 | F27: 태화강 억새베기 및 둔치 정비 등 | G27: 20,000,000 | H27: 생태정원과 | I27: 홍선민 | J27: 052-229-8544
A28: 2026 | B28: 1 | C28: 2026년 스마트도시 통합운영센터 정보시스템 유지관리 용역 | D28: 장기 | E28: 일반용역 | F28: 스마트도시 통합운영센터 정보시스템 145식 유지관리 | G28: 261,554,210 | H28: 스마트도시과 | I28: 김성욱 | J28: 052-229-6824
A29: 2026 | B29: 1 | C29: 스마트 모빌리티 플랫폼 유지관리 | D29: 장기 | E29: 일반용역 | F29: 스마트 모빌리티 플랫폼 13종 73식(HW 41, SW 32) 연간 유지관리 | G29: 78,115,000 | H29: 스마트도시과 | I29: 권유성 | J29: 052-229-6852
A30: 2026 | B30: 1 | C30: 도시 문제 해결을 위한 에너시티 AI 솔루션 구축 | D30: 신규 | E30: 일반용역 | F30: 도시생활 데이터와 AI 기술 기반 복합도시지표를 활용한 도시문제 해결을 위한 솔루션 구축 | G30: 1,800,000,000 | H30: 스마트도시과 | I30: 이기한 | J30: 052-229-6833 | K30: 국토교통부 공모 선정
A31: 2026 | B31: 1 | C31: 1월 문화가 있는 날 행사 | D31: 신규 | E31: 일반용역 | F31: 저자초청 강연회, 공연 등 | G31: 3,000,000 | H31: 울산도서관 자료정책과 | I31: 이유진 | J31: 052-229-6903
A32: 2026 | B32: 1 | C32: 울산박물관 초화류등 실내외 화분식물 관리 용역 | D32: 신규 | E32: 일반용역 | F32: 초화류등 실내외 화분식물 관리 | G32: 12,000,000 | H32: 울산박물관 | I32: 김시형 | J32: 052-229-4712
A33: 2026 | B33: 1 | C33: 2026년 기후대응 도시숲 조성사업 실시설계 용역 | D33: 신규 | E33: 일반용역 | F33: 도시숲 조성 실시설계 1식 | G33: 60,000,000 | H33: 일반산단과 | I33: 박현정 | J33: 229-3065
A34: 2026 | B34: 1 | C34: 길천2차일반산단(2단계) 사후환경영향조사(운영시)용역 | D34: 신규 | E34: 기술용역 | F34: 길천2차(2단계)운영에 대한 사후환경영향조사 실시 | G34: 100,000,000 | H34: 일반산단과 | I34: 김동욱 | J34: 229-3073
A35: 2026 | B35: 1 | C35: 2026년 비상발령시스템 유지보수 용역 | D35: 신규 | E35: 기술용역 | F35: 음성/문자서버, 운영s/w 등 9종 14대 | G35: 11,084,000 | H35: 정보화담당관 | I35: 김용민 | J35: 052-229-2382
A36: 2026 | B36: 1 | C36: 2026년 네트워크스위치 유지보수 용역 | D36: 신규 | E36: 기술용역 | F36: 네트워크스위치 7종 53대 | G36: 20,496,000 | H36: 정보화담당관 | I36: 이상규 | J36: 052-229-2383
A37: 2026 | B37: 1 | C37: 2026년 멀티미디어 협업시스템 유지보수 용역 | D37: 신규 | E37: 기술용역 | F37: 운영서버, DB/웹서버, 운영S/W 등 3종 | G37: 13,613,000 | H37: 정보화담당관 | I37: 김용민 | J37: 052-229-2382
A38: 2026 | B38: 1 | C38: 2026년 전자팩스시스템 유지보수 용역 | D38: 신규 | E38: 기술용역 | F38: 운영서버,조회서버,운영S/W 등 3종 | G38: 6,000,000 | H38: 정보화담당관 | I38: 강상욱 | J38: 052-229-2384
A39: 2026 | B39: 1 | C39: 2026년 청사대도청시스템 유지보수 용역 | D39: 신규 | E39: 기술용역 | F39: 관제서버, 통신소프트웨어 등 5종 | G39: 13,530,000 | H39: 정보화담당관 | I39: 김용민 | J39: 052-229-2382
A40: 2026 | B40: 1 | C40: 2026년 행정전화 스마트알림시스템 유지보수 용역 | D40: 신규 | E40: 기술용역 | F40: 운영서버 등 8종 | G40: 19,292,000 | H40: 정보화담당관 | I40: 이상규 | J40: 052-229-2383
A41: 2026 | B41: 1 | C41: 울산형 공공예식장 운영 및 결혼식 지원 사업 | D41: 신규 | E41: 일반용역 | F41: 야외결혼식 연출 및 예식 진행 | G41: 105,000,000 | H41: 정책기획관 | I41: 최영임 | J41: 052-229-2144
A42: 2026 | B42: 1 | C42: 울산HTV일반산업단지(1단계)조성사업 사후환경영향조사용역(운영시,1차) | D42: 신규 | E42: 기술용역 | F42: 사후환경영향조사1식 | G42: 200,000,000 | H42: 울산경제자유구역청 혁신성장지원부 | I42: 김진경 | J42: 052-229-8653
A43: 2026 | B43: 1 | C43: 시립교향악단 유튜브 영상 제작 및 운용 | D43: 신규 | E43: 일반용역 | F43: 영상제작 1식 | G43: 30,000,000 | H43: 예술사업과 | I43: 김영준 | J43: 052-226-8233
A44: 2026 | B44: 1 | C44: 2026년 회관내 수목 병해충방제 용역 | D44: 신규 | E44: 일반용역 | F44: - 소나무 및 침엽수류 병해충방제(응애 및 진딧물) 등 3개 공정 - 활엽수류 병해충방제(응애 및 진딧물) 등 4개공정 | G44: 11,000,000 | H44: 경영관리과 | I44: 박만조 | J44: 052-226-8223
A45: 2026 | B45: 1 | C45: 2026년 사후관리 매립지 지반침하량 조사 용역 | D45: 신규 | E45: 기술용역 | F45: 사후관리 매립지 지반침하량 조사 12회 | G45: 19,200,000 | H45: 자원순환과 | I45: 임재철 | J45: 052-229-3245
A46: 2026 | B46: 1 | C46: 광역 대형폐기물 공공처리시설 건립 사업 타당성 조사 및 기본계획 수립 용역 | D46: 신규 | E46: 기술용역 | F46: 발생량 90톤/일 광역 대형폐기물 공공처리시설 건립 타당성 조사 및 기본계획 수립 | G46: 11,000,000 | H46: 자원순환과 | I46: 안상욱 | J46: 052-229-3223
A47: 2026 | B47: 1 | C47: 광역 재활용품 공공선별장 건립 건축기획 용역 | D47: 신규 | E47: 기술용역 | F47: 광역 재활용품 공공선별장 건립 공공건축심의위원회 자료 작성 등 | G47: 22,000,000 | H47: 자원순환과 | I47: 이병희 | J47: 052-229-3232
A48: 2026 | B48: 1 | C48: 2026년 울산컵 세척 운반 서비스 용역 | D48: 신규 | E48: 일반용역 | F48: 울산컵 공급, 수거, 세척, 재공급 | G48: 126,000,000 | H48: 자원순환과 | I48: 장희성 | J48: 052-229-3234
A49: 2026 | B49: 1 | C49: 2026년도 쓰레기 종량제봉투 물류전산화시스템 유지보수 용역 | D49: 신규 | E49: 일반용역 | F49: 종량제봉투 물류전산화시스템 유지보수 | G49: 6,083,900 | H49: 자원순환과 | I49: 남호정 | J49: 052-229-3224
A50: 2026 | B50: 1 | C50: 2026년 급수 및 누수복구 단가공사 실시설계용역 | D50: 신규 | E50: 기술용역 | F50: 실시설계 1식 | G50: 12,890,000 | H50: 상수도사업본부 급수부 | I50: 우경하 | J50: 052-229-5542
A51: 2026 | B51: 1 | C51: 2026년 전기방식시설 유지관리 용역 | D51: 신규 | E51: 기술용역 | F51: 전기방식 시설물 유지관리 | G51: 24,000,000 | H51: 상수도사업본부 시설관리부 | I51: 박재수 | J51: 052-229-6229
A52: 2026 | B52: 1 | C52: 2026년도 수질계측기 유지보수용역 | D52: 장기 | E52: 일반용역 | F52: 수질계측기 점검 및 소수리 | G52: 78,792,120 | H52: 상수도사업본부 시설관리부 | I52: 김미리 | J52: 052-229-6687
A53: 2026 | B53: 1 | C53: 동구지역 블록시스템 재정비사업 실시설계용역 | D53: 신규 | E53: 기술용역 | F53: 실시설계 1식, 설계안전성검토 1식 등 | G53: 95,000,000 | H53: 상수도사업본부 시설관리부 | I53: 라승태 | J53: 052-229-5572
A54: 2026 | B54: 1 | C54: 2026년 노후 및 고장계량기 교체공사(연간단가)-1구역 재해예방 기술지도 용역 | D54: 신규 | E54: 기술용역 | F54: 재해예방 기술지도 | G54: 5,000,000 | H54: 상수도사업본부 시설관리부 | I54: 김진우 | J54: 052-229-6686
A55: 2026 | B55: 1 | C55: 2026년 노후계량기 교체공사(연간단가)-2구역 재해예방 기술지도 용역 | D55: 신규 | E55: 기술용역 | F55: 재해예방 기술지도 | G55: 5,000,000 | H55: 상수도사업본부 시설관리부 | I55: 김진우 | J55: 052-229-6686
A56: 2026 | B56: 1 | C56: 회야정수장 정밀안전점검용역 | D56: 신규 | E56: 기술용역 | F56: 정밀안전점검 1식 | G56: 28,000,000 | H56: 상수도사업본부 회야정수사업소 | I56: 김세윤 | J56: 052-229-6414
A57: 2026 | B57: 1 | C57: 2026 태화강 국가정원 봄꽃축제 | D57: 신규 | E57: 일반용역 | F57: 개막식, 공연, 전시, 체험, 부대행사 | G57: 150,000,000 | H57: 태화강국가정원과 | I57: 김현 | J57: 052-229-7562
A58: 2026 | B58: 1 | C58: 철새공원 노후화장실 교체공사 | D58: 신규 | E58: 기술용역 | F58: 노후화장실 교체 1식 | G58: 6,000,000 | H58: 태화강국가정원과 | I58: 김차현 | J58: 052-229-7582 | K58: 발주금액 변동될 수 있음
A59: 2026 | B59: 1 | C59: 방어진수질개선사업소 원가산정용역 | D59: 신규 | E59: 기술용역 | F59: 관리대행 원가산정 | G59: 20,000,000 | H59: 하수관리과 | I59: 차명환 | J59: 052-229-3293 | K59: 방어진
A60: 2026 | B60: 2 | C60: 울산도시철도1호선 수소전기트램 차량제작감독 용역 | D60: 신규 | E60: 기술용역 | F60: 수소전기트램 차량제작감독 | G60: 515,000,000 | H60: 광역트램교통과 | I60: 남성민 | J60: 052-229-7792
A61: 2026 | B61: 2 | C61: 제5차 울산광역시 교통안전기본계획 수립 용역 | D61: 신규 | E61: 기술용역 | F61: 교통안전기본계획 수립 1식 | G61: 80,000,000 | H61: 교통기획과 | I61: 임규생 | J61: 052-229-4265
A62: 2026 | B62: 2 | C62: 2026년 교통사고 잦은 곳 개선사업 실시설계용역 | D62: 신규 | E62: 기술용역 | F62: 교통체계 개선 실시설계 1식 | G62: 49,000,000 | H62: 교통기획과 | I62: 노동훈 | J62: 052-229-4263
A63: 2026 | B63: 2 | C63: 거세 한우 고온기 스트레스 저감 기술보급 시범 사양관리 컨설팅 | D63: 신규 | E63: 기술용역 | F63: 사양관리 컨실팅 | G63: 9,000,000 | H63: 농업기술센터 농업지원과 | I63: 한상철 | J63: 052-229-5452
A64: 2026 | B64: 2 | C64: 2026년 가정위탁아동 상해보험 가입 용역 | D64: 신규 | E64: 일반용역 | F64: 가정위탁아동 상해보험 단체가입 (아동 250~270명 정도) | G64: 16,000,000 | H64: 복지정책과 | I64: 김미진 | J64: 052-229-3443
A65: 2026 | B65: 2 | C65: 2026년 태화강 둔치 임목폐기물처리용역 | D65: 장기 | E65: 일반용역 | F65: 임목폐기물 처리 100톤 | G65: 20,000,000 | H65: 생태정원과 | I65: 홍선민 | J65: 052-229-8544
A66: 2026 | B66: 2 | C66: 2월 문화가 있는 날 행사 | D66: 신규 | E66: 일반용역 | F66: 저자초청 강연회, 공연 등 | G66: 3,000,000 | H66: 울산도서관 자료정책과 | I66: 이유진 | J66: 052-229-6903
A67: 2026 | B67: 2 | C67: 울산어린이청소년도서관 AI 특화 프로그램 | D67: 신규 | E67: 일반용역 | F67: 어린이·청소년 대상 AI 특화 프로그램 운영 | G67: 7,000,000 | H67: 울산도서관 어린이청소년도서관 | I67: 문보선 | J67: 052-229-6913
A68: 2026 | B68: 2 | C68: 울산어린이청소년도서관 도서관주간 행사 | D68: 신규 | E68: 일반용역 | F68: 작가와의 만남 등 도서관 문화 행사 개최 | G68: 5,000,000 | H68: 울산도서관 어린이청소년도서관 | I68: 박영애 | J68: 052-229-6911
A69: 2026 | B69: 2 | C69: 울산도서관 조경시설 유지관리 용역 | D69: 신규 | E69: 일반용역 | F69: 조경면적 8,325.30㎡, 교목, 관목, 잔디 등 관리 | G69: 50,000,000 | H69: 울산도서관 운영지원과 | I69: 라정순 | J69: 052-229-6864
A70: 2026 | B70: 2 | C70: 대곡박물관 초화류 식재 및 조경관리 용역 | D70: 신규 | E70: 일반용역 | F70: 초화류 식재(분기별 1회) 조경관리(월 1회) | G70: 16,000,000 | H70: 울산박물관 | I70: 박정석 | J70: 052-229-4789
A71: 2026 | B71: 2 | C71: 2026년 울산시립미술관 소장작품 및 수장고 소독 용역 | D71: 신규 | E71: 일반용역 | F71: 미술관 소장작품(238점) 및 수장고 소독 2회 | G71: 15,000,000 | H71: 울산시립미술관 | I71: 김혜정 | J71: 052-229-8444
A72: 2026 | B72: 2 | C72: 2026년 상반기 일반산업단지 시설물 정기 및 정밀안점점검 용역 | D72: 신규 | E72: 일반용역 | F72: 시설물 점검 1식 | G72: 66,000,000 | H72: 일반산단과 | I72: 김소영 | J72: 052-229-3063
A73: 2026 | B73: 2 | C73: 디지털배움터 교육 운영 사업 | D73: 신규 | E73: 기술용역 | F73: 교육 운영 사업 1식 | G73: 1,803,750,000 | H73: 정보화담당관 | I73: 제아름 | J73: 052-229-2345
A74: 2026 | B74: 2 | C74: 부동산 아카데미 운영 | D74: 신규 | E74: 일반용역 | F74: - 대 상 : 시민, 부동산중개사 등 - 교육횟수 : 3회 - 교육인원 : 1,200명(회당 400명) - 주요내용 : 안전한 부동산 거래방법, 부동산 세제실무 등 | G74: 30,000,000 | H74: 토지정보과 | I74: 이재철 | J74: 052-229-4452
A75: 2026 | B75: 2 | C75: 2026년 사후관리 매립장 방역 용역 | D75: 신규 | E75: 일반용역 | F75: 사후관리 매립장 방역 66회 | G75: 17,820,000 | H75: 자원순환과 | I75: 임재철 | J75: 052-229-3245
A76: 2026 | B76: 2 | C76: 다회용기 순환서비스 운영 | D76: 신규 | E76: 일반용역 | F76: 장례식장 다회용기 지원 | G76: 300,000,000 | H76: 자원순환과 | I76: 황은영 | J76: 052-229-3233
A77: 2026 | B77: 2 | C77: 2026년 상반기 송수관로 정기안전점검 | D77: 신규 | E77: 기술용역 | F77: 정기안전점검 1식 | G77: 40,000,000 | H77: 상수도사업본부 시설관리부 | I77: 이두형 | J77: 052-229-6228
A78: 2026 | B78: 2 | C78: 2026년 지하시설물(상수도)전산화 수정·갱신사업 용역 | D78: 신규 | E78: 기술용역 | F78: 상수도 지하시설물 측량/탐사 | G78: 491,500,000 | H78: 상수도사업본부 시설관리부 | I78: 박재수 | J78: 052-229-6229
A79: 2026 | B79: 2 | C79: 회야댐 정밀안전진단용역 | D79: 신규 | E79: 기술용역 | F79: 정밀안전진단 1식 | G79: 497,000,000 | H79: 상수도사업본부 회야정수사업소 | I79: 김세윤 | J79: 052-229-6414
A80: 2026 | B80: 2 | C80: 2026년 회야정수장 수도시설물 정기청소 용역 | D80: 신규 | E80: 일반용역 | F80: 정수지, 침전지, 여과지 청소 1식 | G80: 250,000,000 | H80: 상수도사업본부 회야정수사업소 | I80: 남계욱 | J80: 052-229-6426
A81: 2026 | B81: 2 | C81: 2026년 관리대행 수질개선사업소 유량계 검교정 용역 | D81: 신규 | E81: 기술용역 | F81: 유량계 106대 검교정 | G81: 74,910,000 | H81: 하수관리과 | I81: 김정현 | J81: 052-229-3297 | K81: 회야,언양,방어진
A82: 2026 | B82: 2 | C82: 방어진수질개선사업소 위험기계기구 안전검사 용역 | D82: 신규 | E82: 기술용역 | F82: 위험기계기구 안전검사 1식 | G82: 1,920,000 | H82: 하수관리과 | I82: 김정현 | J82: 052-229-3297 | K82: 방어진
A83: 2026 | B83: 2 | C83: 언양수질개선사업소 정밀점검 | D83: 신규 | E83: 기술용역 | F83: 회야.방어진수질개선사업소 정밀점검 | G83: 30,000,000 | H83: 하수관리과 | I83: 이준호 | J83: 052-229-3296 | K83: 언양
A84: 2026 | B84: 2 | C84: 방어진수질개선사업소 최초침전지(13~20수로) 보수공사 실시설계용역 | D84: 신규 | E84: 기술용역 | F84: 실시설계 및 구조검토 1식 | G84: 50,000,000 | H84: 하수관리과 | I84: 이준호 | J84: 052-229-3296 | K84: 방어진
A85: 2026 | B85: 2 | C85: 하수슬러지처리시설 대기오염물질 자가측정 대행용역 | D85: 신규 | E85: 기술용역 | F85: 대기오염물질 자가측정 1식 | G85: 120,000,000 | H85: 하수관리과 | I85: 김현영 | J85: 052-229-3294 | K85: 슬러지 1~4호기
A86: 2026 | B86: 2 | C86: 퇴적토 분리시설 발생 매립폐기물 처리용역 | D86: 신규 | E86: 기술용역 | F86: 사업장폐기물처리 1식 | G86: 10,000,000 | H86: 하수관리과 | I86: 허진우 | J86: 052-229-3305 | K86: 방어진
A87: 2026 | B87: 3 | C87: 울산 도시철도(트램) 1호선 시스템엔지니어링(SE) 사업 | D87: 신규 | E87: 기술용역 | F87: 시스템(차량, 전기, 신호, 통신, 검수) 총괄관리 1식 | G87: 6,000,000,000 | H87: 광역트램교통과 | I87: 정장식 | J87: 052-229-7793
A88: 2026 | B88: 3 | C88: 공공건축물 안전디자인 개선사업 용역 | D88: 신규 | E88: 일반용역 | F88: 공공건축물 실내·외 안전디자인 및 유니버설 디자인 적용(사인물, 안내판 등) | G88: 200,000,000 | H88: 도시경관과 | I88: 정필성 | J88: 052-229-6554
A89: 2026 | B89: 3 | C89: 2031년 울산권 개발제한구역관리계획 수립 용역 | D89: 신규 | E89: 기술용역 | F89: 관리계획(A=267.02㎢) 1식 | G89: 100,000,000 | H89: 도시계획과 | I89: 임지예 | J89: 052-229-4335
A90: 2026 | B90: 3 | C90: 2026년 시내버스 외부회계감사 및 운송원가조사 용역 | D90: 장기 | E90: 일반용역 | F90: 2026년 표준운송원가 산정 등 | G90: 120,000,000 | H90: 버스택시과 | I90: 이은아 | J90: 052-229-4195
A91: 2026 | B91: 3 | C91: 연구실 작업환경측정 | D91: 장기 | E91: 기술용역 | F91: 산업안전보건법 시행규칙 별표21의 물질에 대한 작업환경측정 | G91: 17,000,000 | H91: 보건환경연구원 생활환경과 | I91: 이광원 | J91: 052-229-6691
A92: 2026 | B92: 3 | C92: 울산도서관 도서관 주간 행사 | D92: 신규 | E92: 일반용역 | F92: 북콘서트, 작가와의 만남 등 | G92: 10,000,000 | H92: 울산도서관 자료정책과 | I92: 구진아 | J92: 052-229-6906
A93: 2026 | B93: 3 | C93: 2025년 울산대곡박물관 제1차 특별기획전 전시연출 용역 | D93: 신규 | E93: 일반용역 | F93: 전시장 설치, 영상 및 사인물 제작 | G93: 30,000,000 | H93: 울산박물관 | I93: 윤근영 | J93: 052-229-4781
A94: 2026 | B94: 3 | C94: 조경시설 유지관리용역 | D94: 신규 | E94: 일반용역 | F94: 울산시립미술관 조경시설 관리 | G94: 13,200,000 | H94: 울산시립미술관 | I94: 김유경 | J94: 052-229-8433
A95: 2026 | B95: 3 | C95: 2026년 울산시립미술관 기계설비 성능점검 용역 | D95: 신규 | E95: 일반용역 | F95: 미술관 내 기계설비 성능점검 | G95: 20,000,000 | H95: 울산시립미술관 | I95: 손현호 | J95: 052-229-8438
A96: 2026 | B96: 3 | C96: 노후산단 구조고도화계획 수립용역 | D96: 신규 | E96: 기술용역 | F96: 길천일반산업단지 구조고도화 1식 | G96: 70,000,000 | H96: 일반산단과 | I96: 라우진 | J96: 052-229-3072
A97: 2026 | B97: 3 | C97: 2026년 일반산업단지 입주기업체 실태조사 | D97: 신규 | E97: 일반용역 | F97: 일반산업단지 입주기업체 전수조사(현황,애로사항 등) 및 통계분석 | G97: 25,000,000 | H97: 일반산단과 | I97: 김동욱 | J97: 052-229-3073
A98: 2026 | B98: 3 | C98: 이화일반산업단지 절토사면 정기안전점검용역 | D98: 신규 | E98: 기술용역 | F98: 정기안전점검1식 | G98: 10,000,000 | H98: 울산경제자유구역청 혁신성장지원부 | I98: 김진경 | J98: 052-229-8653
A99: 2026 | B99: 3 | C99: 언양로 일원 노후상수도관 정비공사 실시설계용역 | D99: 신규 | E99: 기술용역 | F99: 상수관로 부설(D300, L=1.1km) 실시설계 1식 | G99: 90,000,000 | H99: 상수도사업본부 시설관리부 | I99: 서성용 | J99: 052-229-6233
A100: 2026 | B100: 3 | C100: 2026년 긴급누수복구 및 수선단가공사(1, 2구역) 건설폐기물 처리용역(장기계속) | D100: 장기 | E100: 일반용역 | F100: 폐콘크리트. 폐아스콘, 벽돌 처리 운반 1식 | G100: 50,000,000 | H100: 상수도사업본부 시설관리부 | I100: 이두형 | J100: 052-229-6228 | K100: 장기계속계약
A101: 2026 | B101: 3 | C101: 2026년 긴급누수복구 및 수선단가공사 1구역 건설재해예방 기술지도용역(장기계속) | D101: 장기 | E101: 기술용역 | F101: 기술지도 1식 | G101: 4,000,000 | H101: 상수도사업본부 시설관리부 | I101: 이두형 | J101: 052-229-6228 | K101: 장기계속계약
A102: 2026 | B102: 3 | C102: 2026년 긴급누수복구 및 수선단가공사 2구역 건설재해예방 기술지도용역(장기계속) | D102: 장기 | E102: 기술용역 | F102: 기술지도 1식 | G102: 4,000,000 | H102: 상수도사업본부 시설관리부 | I102: 이두형 | J102: 052-229-6228 | K102: 장기계속계약
A103: 2026 | B103: 3 | C103: 2026년 긴급누수복구 및 수선단가공사 GIS DB구축 용역 | D103: 장기 | E103: 기술용역 | F103: GIS DB구축 용역 | G103: 40,000,000 | H103: 상수도사업본부 시설관리부 | I103: 박재수 | J103: 052-229-6229 | K103: 장기계속계약
A104: 2026 | B104: 3 | C104: 2026년 긴급누수복구 및 수선단가공사 GIS DB구축 용역 | D104: 신규 | E104: 일반용역 | F104: 상수도관 세척 | G104: 200,000,000 | H104: 상수도사업본부 시설관리부 | I104: 이동욱 | J104: 052-229-6231
A105: 2026 | B105: 3 | C105: 2026년도 천상계통 배수지 정기청소용역 | D105: 장기 | E105: 일반용역 | F105: 배수지 및 흡수정 16개소 연 2회 청소 | G105: 220,000,000 | H105: 상수도사업본부 시설관리부 | I105: 김미리 | J105: 052-229-6687
A106: 2026 | B106: 3 | C106: 2026년도 회야계통 배수지 정기청소용역 | D106: 장기 | E106: 일반용역 | F106: 배수지 및 흡수정 16개소 연 2회 청소 | G106: 220,000,000 | H106: 상수도사업본부 시설관리부 | I106: 김미리 | J106: 052-229-6687
A107: 2026 | B107: 3 | C107: 남목배수지 등 31개소 안전점검 용역 | D107: 장기 | E107: 기술용역 | F107: 배수지 및 가압장 정밀안전점검 | G107: 400,000,000 | H107: 상수도사업본부 시설관리부 | I107: 김남열 | J107: 052-229-5584
A108: 2026 | B108: 3 | C108: 유량계 검교정 용역 | D108: 장기 | E108: 기술용역 | F108: 송수관로, 가압장, 배수지, 블록유량계 비교검사 및 교정 | G108: 95,000,000 | H108: 상수도사업본부 시설관리부 | I108: 김평주 | J108: 052-229-6688
A109: 2026 | B109: 3 | C109: 공공하수관로 기술진단용역(굴화·강동처리구역) | D109: 신규 | E109: 기술용역 | F109: 기술진단 1식 | G109: 970,000,000 | H109: 하수관리과 | I109: 허진우 | J109: 052-229-3305

Sheet 물품
A1: 발주년도 | B1: 발주월 | C1: 사업명 | D1: 세부품명번호 * | E1: 품 명 | F1: 수량 | G1: 수량단위 | H1: 구매예정금액(원) | I1: 부서명 | J1: 담당자 | K1: 연락처 | L1: 비고
A2: 2026 | B2: 1 | C2: 교통관리센터 백신 소프트웨어 연간 사용권 구입 | D2: 4323320501 | E2: 보안소프트웨어 | F2: 282 | G2: 조 | H2: 23,600,000 | I2: 교통기획과 | J2: 김소라 | K2: 052-229-4278
A3: 2026 | B3: 1 | C3: 교통관리센터 홈페이지 CCTV 라이선스 구입 | D3: 4323290201 | E3: 통신소프트웨어 | F3: 34 | G3: 조 | H3: 12,100,000 | I3: 교통기획과 | J3: 김소라 | K3: 052-229-4278
A4: 2026 | B4: 1 | C4: 농업미생물 배양실 배지 구입 | D4: 1012159901 | E4: 보조사료(미생물 배지) | F4: 400 | G4: 포 | H4: 96,000,000 | I4: 농업기술센터 농업지원과 | J4: 이현석 | K4: 052-229-5454
A5: 2026 | B5: 1 | C5: 친환경 축산관리실 초유진단키트 구입 | D5: 6010392501 | E5: 초유진단키트 | F5: 50 | G5: 10 test/kit | H5: 5,000,000 | I5: 농업기술센터 농업지원과 | J5: 이현석 | K5: 052-229-5454
A6: 2026 | B6: 1 | C6: 친환경 축산관리실(초유은행) 운영 초유 구입 | E6: 초유 | F6: 1,000 | G6: 리터 | H6: 5,000,000 | I6: 농업기술센터 농업지원과 | J6: 이현석 | K6: 052-229-5454
A7: 2026 | B7: 1 | C7: 2026년 과수화상병 방제약제 | D7: 1017170201 | E7: 농업용살균제 | F7: 7905 | G7: 병(봉) | H7: 221,340,000 | I7: 농업기술센터 농업지원과 | J7: 백운장 | K7: 052-229-5453
A8: 2026 | B8: 1 | C8: 2025년 개발제한구역 항공사진 인화 및 모자이크 제작 | D8: 1412181201 | E8: 사진용인화지 | F8: 1 | G8: 식 | H8: 32,000,000 | I8: 도시계획과 | J8: 정용주 | K8: 052-229-4325
A9: 2026 | B9: 1 | C9: 70세 이상 어르신 신규 교통카드 제작 | D9: 3210161701 | E9: 전자카드 | F9: 45,000 | G9: 매 | H9: 198,000,000 | I9: 버스택시과 | J9: 이상협 | K9: 052-229-4194
A10: 2026 | B10: 1 | C10: 70세 이상 어르신 버스요금 무료 확대 홍보물(현수막, 배너) | D10: 5512170601 | E10: 현수막 및 배너 | F10: 165 | G10: 장 | H10: 11,000,000 | I10: 버스택시과 | J10: 김기태 | K10: 052-229-4196
A11: 2026 | B11: 1 | C11: 식중독균 및 식품미생물 검사 | E11: 식품미생물검사 시약 및 소모품 | F11: 10 | G11: EA | H11: 15,000,000 | I11: 보건환경연구원 식중독검사과 | J11: 김혜리 | K11: 052-229-5222
A12: 2026 | B12: 1 | C12: 식품의약품검사 | E12: 표준품 및 시약 | G12: 식 | H12: 30,000,000 | I12: 보건환경연구원 식약품연구과 | J12: 김민경 | K12: 052-229-5232
A13: 2026 | B13: 1 | C13: 설명절 노인복지시설 위문품 배부 | E13: 물티슈 | F13: 1,000 | G13: 개 | H13: 23,000,000 | I13: 보훈노인과 | J13: 이현주 | K13: 052-229-4834
A14: 2026 | B14: 1 | C14: 설명절 노인복지시설 위문품 배부 | E14: 롤화장지 | F14: 8,000 | G14: 속 | H14: 20,000,000 | I14: 보훈노인과 | J14: 이현주 | K14: 052-229-4834
A15: 2026 | B15: 1 | C15: 설명절 노인복지시설 위문품 배부 | E15: 액체세제 | F15: 1,800 | G15: 개 | H15: 20,000,000 | I15: 보훈노인과 | J15: 이현주 | K15: 052-229-4834
A16: 2026 | B16: 1 | C16: 2026년 울산도서관 소식지 「글길」 제작 | E16: 기타인쇄물 | F16: 4000 | G16: 부 | H16: 28,000,000 | I16: 울산도서관 자료정책과 | J16: 이수민 | K16: 052-229-6905
A17: 2026 | B17: 1 | C17: 울산어린이청소년도서관 도서 구입 | E17: 도서 | F17: 3,000 | G17: 권 | H17: 57,000,000 | I17: 울산도서관 어린이청소년도서관 | J17: 박영애 | K17: 052-229-6911
A18: 2026 | B18: 1 | C18: 2026년 울산도서관 전자책·오디오북 구입(1분기) | D18: 5510151001 | E18: 서적 | F18: 1,375 | G18: 권 | H18: 40,000,000 | I18: 울산도서관 정보서비스과 | J18: 장원익 | K18: 052-229-6984
A19: 2026 | B19: 1 | C19: 2026년 제1회 울산도서관 국내도서 구입 | D19: 5510151001 | E19: 서적 | F19: 3,000 | G19: 권 | H19: 50,000,000 | I19: 울산도서관 정보서비스과 | J19: 우지혜 | K19: 052-229-6983
A20: 2026 | B20: 1 | C20: 행정전산장비(컴퓨터) 구입 | D20: 43211507 | E20: 데스크톱컴퓨터 | F20: 500 | G20: 대 | H20: 413,250,000 | I20: 정보화담당관 | J20: 한상혁 | K20: 052-229-2355
A21: 2026 | B21: 1 | C21: 행정업무용 소프트웨어 구입 | D21: 4323151301, 4323320501 | E21: MS오피스, 한컴오피스, 백신 | F21: 4,327 | G21: 본 | H21: 263,200,000 | I21: 정보화담당관 | J21: 한상혁 | K21: 052-229-2355
A22: 2026 | B22: 1 | C22: 국제정원박람회 대비 청소물품 구입 | E22: 집게, 장갑 등 | F22: 장갑 5,000, 집게 500 | G22: 개 | H22: 15,000,000 | I22: 자원순환과 | J22: 안상욱 | K22: 052-229-3223
A23: 2026 | B23: 1 | C23: 도시청결 기동대 피복비 구입 | E23: 안전화, 안전조끼, 장갑, 우의 등 | F23: 111 | G23: 개 | H23: 11,100,000 | I23: 자원순환과 | J23: 안상욱 | K23: 052-229-3223
A24: 2026 | B24: 1 | C24: 2026년 일반·특별회계 성과계획서 인쇄 | E24: 성과계획서 책 인쇄 | F24: 150 | G24: 권 | H24: 10,000,000 | I24: 예산담당관 | J24: 김선재 | K24: 052-229-2237
A25: 2026 | B25: 2 | C25: 연속이온분석기 소모품 구매 | E25: 연속이온분석장비 유지관리 소모품 구매 | F25: 1 | G25: 식 | H25: 21,800,000 | I25: 보건환경연구원 대기연구과 | J25: 김지연 | K25: 052-229-6575
A26: 2026 | B26: 2 | C26: 중금속 및 탄소분석기 유지관리 부품 구매 | E26: 중금속 및 탄소분석기 유지관리 부품 구매 | F26: 1 | G26: 식 | H26: 21,000,000 | I26: 보건환경연구원 대기연구과 | J26: 김지연 | K26: 052-229-6575
A27: 2026 | B27: 2 | C27: 유해대기물질 분석기 소모품 구매 | E27: 유해대기측정시스템 소모품 구매 | F27: 1 | G27: 식 | H27: 16,500,000 | I27: 보건환경연구원 대기연구과 | J27: 김지연 | K27: 052-229-6575
A28: 2026 | B28: 2 | C28: 단가계약 시약소모품 구매 | E28: 실험분석등을위한 시약및 소모품 구매 | F28: 1 | G28: 식 | H28: 35,000,000 | I28: 보건환경연구원 대기연구과 | J28: 박미영 | K28: 052-229-6187
A29: 2026 | B29: 2 | C29: 실내공기질, 악취 시약 및 소모품 구매 | D29: 12161599 | E29: TSA배지 등 20종 | F29: 30 | G29: SET | H29: 30,000,000 | I29: 보건환경연구원 생활환경과 | J29: 홍명희 | K29: 052-229-6693
A30: 2026 | B30: 2 | C30: 식중독균 및 식품미생물 검사 | E30: 식품미생물검사 시약 및 소모품 | F30: 10 | G30: EA | H30: 15,000,000 | I30: 보건환경연구원 식중독검사과 | J30: 김혜리 | K30: 052-229-5222
A31: 2026 | B31: 2 | C31: 식중독균 검사지원(재료비) | E31: 식중독균 검사 시약 및 소모품 | F31: 20 | G31: EA | H31: 30,000,000 | I31: 보건환경연구원 식중독검사과 | J31: 김혜리 | K31: 052-229-5222
A32: 2026 | B32: 2 | C32: 의료용 면역형광 측정장치 구매 | D32: 41119924 | E32: 의료용 면역형광측정장치 | F32: 1 | G32: ea | H32: 60,000,000 | I32: 보건환경연구원 질병조사과 | J32: 박미영 | K32: 052-229-4692
A33: 2026 | B33: 2 | C33: 지역거점진단센터 운영비 지원 | E33: 페트리디쉬 및 바이텍카드 등 | F33: 100 | G33: ea | H33: 150,000,000 | I33: 보건환경연구원 질병조사과 | J33: 김수희 | K33: 052-229-4695
A34: 2026 | B34: 2 | C34: 질병조사 및 감시 | E34: 질병조사 검사시약 및 소모품 | F34: 150 | G34: ea | H34: 50,000,000 | I34: 보건환경연구원 질병조사과 | J34: 김수희 | K34: 052-229-4695
A35: 2026 | B35: 2 | C35: 가축방역 소요재료 구입 | D35: 5132020201 | E35: 일반검사용시약 | F35: 1 | G35: 식 | H35: 10,000,000 | I35: 보건환경연구원 동물위생과 | J35: 윤남식 | K35: 052-229-5242
A36: 2026 | B36: 2 | C36: 2026년 축산물 위생검사 | D36: 1216150301 | E36: 축산물 위생검사 소모품 | F36: 1 | G36: 식 | H36: 140,000,000 | I36: 보건환경연구원 축산물검사과 | J36: 김화진 | K36: 052-229-5251
A37: 2026 | B37: 2 | C37: 자료실 전산장비 구입 | D37: 4323210201 | E37: 데스크톱컴퓨터 | F37: 20 | G37: 대 | H37: 17,000,000 | I37: 울산도서관 정보서비스과 | J37: 이병훈 | K37: 052-229-6981
A38: 2026 | B38: 2 | C38: 자료실 전산장비 구입 | D38: 4321190201 | E38: 액정모니터 | F38: 20 | G38: 대 | H38: 5,000,000 | I38: 울산도서관 정보서비스과 | J38: 이병훈 | K38: 052-229-6981
A39: 2026 | B39: 2 | C39: 정보통신실 냉방기 구입 | D39: 7611159902 | E39: 냉방기 | F39: 1 | G39: 대 | H39: 5,000,000 | I39: 울산도서관 정보서비스과 | J39: 이병훈 | K39: 052-229-6981
A40: 2026 | B40: 2 | C40: 실과소 네트워크스위치 교체 | D40: 4322260101 | E40: 이더넷스위치(L2) | F40: 10 | G40: 대 | H40: 27,373,000 | I40: 정보화담당관 | J40: 이상규 | K40: 052-229-2383
A41: 2026 | B41: 2 | C41: 통신실 무전전전원장치 교체 | D41: 3912101104 | E41: UPS | F41: 1 | G41: 대 | H41: 17,000,000 | I41: 정보화담당관 | J41: 강상욱 | K41: 052-229-2384
A42: 2026 | B42: 2 | C42: 항온항습기 노후 교체 | D42: 4010171501 | E42: 항온항습기 | F42: 4 | G42: 대 | H42: 165,350,000 | I42: 정보화담당관 | J42: 서정희 | K42: 052-229-2353
A43: 2026 | B43: 2 | C43: 시립교향악단 악기(팀파니) 구입 | D43: 6013144401 | E43: 팀파니 | F43: 1 | G43: 식 | H43: 200,000,000 | I43: 문화예술회관 예술사업과 | J43: 김영준 | K43: 052-226-8233
A44: 2026 | B44: 2 | C44: 상반기 수도미터(소구경) 구매 | E44: 수도미터(15~50mm) | F44: 5,500 | G44: 대 | H44: 350,000,000 | I44: 상수도사업본부 시설관리부 | J44: 김진우 | K44: 052-229-6686 | L44: 금액 변경 가능
A45: 2026 | B45: 2 | C45: 상반기 수도미터(대구경) 구매 | E45: 수도미터(80~200mm) | F45: 170 | G45: 대 | H45: 80,000,000 | I45: 상수도사업본부 시설관리부 | J45: 김진우 | K45: 052-229-6686 | L45: 금액 변경 가능
A46: 2026 | B46: 2 | C46: 활성탄흡착지 입상활성탄 신탄교체 | D46: 1110152201 | E46: 입상활성탄 | F46: 520 | G46: ㎥ | H46: 900,900,000 | I46: 상수도사업본부 회야정수사업소 | J46: 변성우 | K46: 052-229-6424
A47: 2026 | B47: 3 | C47: 화재진압장비, 구조장비 소모품 구매 | D47: 31151504 | E47: 로프 등 70종 | F47: 1,000 | G47: 점 | H47: 52,000,000 | I47: 북부소방서 재난대응과 | J47: 박철우 | K47: 052-229-8054
A48: 2026 | B48: 3 | C48: 지능형교통체계 보안 강화 사업 | D48: 4322250101 | E48: 웹방화벽 | F48: 1 | G48: 대 | H48: 27,628,000 | I48: 교통기획과 | J48: 김소라 | K48: 052-229-4278
A49: 2026 | B49: 3 | C49: 지능형교통체계 보안 강화 사업 | D49: 4322261201 | E49: 네트워크스위치 | F49: 2 | G49: 대 | H49: 154,439,000 | I49: 교통기획과 | J49: 김소라 | K49: 052-229-4278
A50: 2026 | B50: 3 | C50: 농업미생물 배양실 포장재 구입 | D50: 2411150302 | E50: 포장재(포장지) | F50: 65,000 | G50: 매 | H50: 60,000,000 | I50: 농업기술센터 농업지원과 | J50: 이현석 | K50: 052-229-5454
A51: 2026 | B51: 3 | C51: 환경분석용 시약 및 소모품 구매 | D51: 12161599 | E51: 시약 및 소모품 | F51: 1 | G51: 식 | H51: 25,000,000 | I51: 보건환경연구원 환경조사과 | J51: 탁경학 | K51: 052-229-6173
A52: 2026 | B52: 3 | C52: 수질미생물 분석용 시약 구매 | D52: 12161599 | E52: 미생물 분석 시약 | F52: 4 | G52: 종 | H52: 17,000,000 | I52: 보건환경연구원 환경조사과 | J52: 탁경학 | K52: 052-229-6173
A53: 2026 | B53: 3 | C53: 수질의 보전과 먹는물 안전성 검사(수질 및 먹는물 분석 시약 구매) | D53: 12161599 | E53: 분석용 시약, 표준물질 | F53: 30 | G53: ea | H53: 10,000,000 | I53: 보건환경연구원 수질연구과 | J53: 김지현 | K53: 052-229-6193
A54: 2026 | B54: 3 | C54: 수질의 보전과 먹는물 안전성 검사(시험분석용 소모품 구매) | D54: 41121806 | E54: GC용 바이알, 캡, 컬럼, 플라스크 등 | F54: 60 | G54: ea | H54: 20,000,000 | I54: 보건환경연구원 수질연구과 | J54: 김지현 | K54: 052-229-6193
A55: 2026 | B55: 3 | C55: 식품의약품검사 | E55: 시약 및 소모품 | G55: 식 | H55: 20,000,000 | I55: 보건환경연구원 식약품연구과 | J55: 김민경 | K55: 052-229-5232
A56: 2026 | B56: 3 | C56: 동물질병 진단 등 검사지원 | D56: 1216150301 | E56: 동물질병 검사재료 | F56: 1 | G56: 식 | H56: 47,000,000 | I56: 보건환경연구원 정밀검사과 | J56: 김기성 | K56: 052-229-5312
A57: 2026 | B57: 3 | C57: 가축전염병 진단검사 재료구입 | D57: 5132020501 | E57: 가축전염병 검사재료 | F57: 1 | G57: 식 | H57: 42,000,000 | I57: 보건환경연구원 동물위생과 | J57: 윤남식 | K57: 052-229-5242
A58: 2026 | B58: 3 | C58: 스마트도시 통합운영센터 고도화 | D58: 4323290201 | E58: 통신소프트웨어 | F58: 6 | G58: 조 | H58: 120,500,000 | I58: 스마트도시과 | J58: 김성욱 | K58: 052-229-6824
A59: 2026 | B59: 3 | C59: 스마트도시 통합운영센터 고도화 | D59: 8111159801 | E59: 패키지소프트웨어개발및도입서비스 | F59: 240 | G59: 식 | H59: 79,640,100 | I59: 스마트도시과 | J59: 김성욱 | K59: 052-229-6824
A60: 2026 | B60: 3 | C60: 2026년 울산도서관 국외도서 구입 | D60: 5510151001 | E60: 서적 | F60: 800 | G60: 권 | H60: 16,000,000 | I60: 울산도서관 정보서비스과 | J60: 백지은 | K60: 052-229-6985
A61: 2026 | B61: 3 | C61: 노후 민방위 경보시설 교체 | D61: 4617160601 | E61: 사이렌 | F61: 8 | G61: 식 | H61: 336,000,000 | I61: 자연재난과 | J61: 최준호 | K61: 052-229-2693
A62: 2026 | B62: 3 | C62: 행정업무용 IP전화기 구입 | D62: 4319150302 | E62: IP전화기 | F62: 100 | G62: 대 | H62: 55,000,000 | I62: 정보화담당관 | J62: 이상규 | K62: 052-229-2383
A63: 2026 | B63: 3 | C63: 행정업무용 팩스 구입 | D63: 4410150301 | E63: 팩스기기 | F63: 4 | G63: 대 | H63: 1,200,000 | I63: 정보화담당관 | J63: 강상욱 | K63: 052-229-2384
A64: 2026 | B64: 3 | C64: 상수도 홍보물품(인형키링) 제작 | D64: 6014100201 | E64: 인형 | F64: 1,000 | G64: \ | H64: 7,020,000 | I64: 상수도사업본부 경영부 | J64: 김정희 | K64: 052-229-5515 | L64: 발주일정 변동 가능
A65: 2026 | B65: 3 | C65: 2026년 옥외자동검침기 구입(조달) 건의(검침영상플레이어 외 1종) | D65: 23774720 | E65: 검침영상플레이어 외 1종 | F65: 100 | G65: 개 | H65: 21,700,000 | I65: 상수도사업본부 남부사업소 | J65: 이민지 | K65: 052-229-5693
A66: 2026 | B66: 수시 | C66: 유량계 변환기 교체 | E66: 변환기 | F66: 30 | G66: 개소 | H66: 108,000,000 | I66: 상수도사업본부 시설관리부 | J66: 김평주 | K66: 052-229-6688
A67: 2026 | B67: 수시 | C67: 유량계 시설물 수선 | E67: 유량계 판넬 등 | F67: 30 | G67: 개소 | H67: 100,000,000 | I67: 상수도사업본부 시설관리부 | J67: 김평주 | K67: 052-229-6688
